bitfinex-derivatives/quotes_ETHF0:USTF0_20250308
["timestamp","ask_amount","ask_price","bid_price","bid_amount"]
[1741408969197,3.01483,2151.3,2151.2,0.00697983]
[1741408969789,2.085,2151.3,2151.2,0.00697983]
[1741408969994,2.085,2151.3,2151.2,1.54045983]
[1741408970191,0.92983,2151.3,2151.2,0.61057983]
[1741408977397,0.92972,2151.6,2151.4,0.92979]
[1741408977803,5.009,2151.8,2151.2,3.81837983]
[1741408978100,3.01464,2151.8,2151.6,0.92969]
[1741408978301,2.085,2151.8,2151.3,0.6155]
[1741408978502,0.92967,2151.7,2151.5,0.92972]
[1741408978696,3.01465,2151.8,2151.6,0.9297]
[1741408979198,2.085,2151.8,2151.6,0.9297]
[1741408979397,2.19771,2151.9,2151.5,3.2078]
[1741408979589,2.19771,2151.9,2151.7,0.92966]
[1741408979899,0.9297,2151.6,2151.5,3.2078]
[1741408980100,0.9297,2151.6,2151.5,3.2378]
[1741408980401,0.9297,2151.6,2151.5,4.16755]
[1741408980603,0.9297,2151.6,2151.5,3.2378]
[1741408981194,0.9297,2151.6,2151.5,3.2078]
[1741408981802,0.9297,2151.6,2151.2,0.00697983]
[1741408981803,0.92983,2151.3,2151.2,0.00697983]
[1741408982801,0.6259,2151.5,2151.2,0.03697983]
[1741408983102,1.2671,2151.8,2151.4,3.2078]
[1741408983410,0.6259,2152.0,2151.4,5.56222]
[1741408983704,0.92965,2151.8,2151.5,2.16202]
[1741408983904,0.6529,2151.9,2151.5,2.29202]
[1741408984105,0.92969,2151.7,2151.5,0.6236]
[1741408984302,0.92964,2151.8,2151.5,1.55333]
[1741408984603,1.2642,2151.9,2151.6,0.9297]
[1741408984807,0.6259,2152.0,2151.5,0.6236]
[1741408984808,1.55544,2152.0,2151.7,0.92962]
[1741408985107,1.55544,2152.0,2151.8,0.6164]
[1741408985312,1.55544,2152.0,2151.8,1.54601]
[1741408985507,1.55544,2152.0,2151.8,0.6164]
[1741408985910,0.6259,2152.0,2151.8,1.546]
[1741408986109,1.55544,2152.0,2151.8,0.6164]
[1741408986309,1.55544,2152.0,2151.8,1.54601]
[1741408986511,0.6259,2152.0,2151.8,1.54601]
[1741408987311,0.6259,2152.0,2151.8,0.6164]
[1741408987511,1.55544,2152.0,2151.8,1.54599]
[1741408987707,0.00697983,2152.1,2151.8,4.6164]
[1741408987913,0.00697983,2152.1,2152.0,0.92953]
[1741408988109,0.00697983,2152.1,2152.0,0.95953]
[1741408989111,0.00697983,2152.1,2152.0,4.16733]
[1741408989708,2.16854,2152.7,2152.4,0.92934]
[1741408989912,1.2393,2152.7,2152.5,0.92929]
[1741408990211,1.2393,2152.7,2152.3,3.2078]
[1741408990512,0.92911,2153.0,2152.7,0.9292]
[1741408990718,4.77328,2153.1,2152.8,0.92918]
[1741408990919,4.77327,2153.1,2152.6,3.2078]
[1741408991108,4.77327,2153.1,2152.8,0.92917]
[1741408991418,1.56547,2153.1,2152.7,3.02017983]
[1741408991819,0.6364,2153.1,2153.0,0.9291]
[1741408992123,0.00697983,2153.2,2152.9,4.13691]
[1741408992124,0.93598983,2153.2,2152.9,4.13691]
[1741408992416,0.9291,2153.0,2152.9,3.2078]
[1741408994413,2.85837,2153.1,2152.9,3.2078]
[1741408994917,1.9293,2153.1,2152.9,3.2078]
[1741408995121,0.9291,2153.0,2152.9,3.2078]
[1741408995319,2.85838,2153.1,2152.9,3.2078]
[1741408995515,0.9291,2153.0,2152.9,3.2078]
[1741408997118,2.85836,2153.1,2152.9,3.2078]
[1741408997321,1.9293,2153.1,2152.9,3.2078]
[1741408997815,2.85838,2153.1,2152.9,3.2078]
[1741408998024,2.85837,2153.1,2152.9,3.2078]
[1741408998322,0.9291,2153.0,2152.9,3.2078]
[1741408999517,1.9293,2153.1,2152.7,0.00697983]
[1741408999518,0.92918,2152.8,2152.7,0.00697983]
[1741409000319,0.9294,2152.3,2152.2,3.2078]
[1741409000923,0.92937,2152.4,2152.2,3.2078]
[1741409001123,0.9294,2152.3,2152.2,3.2078]
[1741409001321,0.6154,2152.3,2152.2,3.2078]
[1741409001520,1.5448,2152.3,2152.2,3.2078]
[1741409002224,0.6154,2152.3,2152.2,4.13724]
[1741409002436,0.6154,2152.3,2152.0,0.00697983]
[1741409002628,0.6154,2152.3,2152.1,0.92945]
[1741409002925,0.6154,2152.3,2152.1,0.02]
[1741409003124,0.6154,2152.3,2152.0,0.62207983]
[1741409003319,0.6154,2152.3,2152.0,0.67207983]
[1741409003523,0.92944,2152.2,2152.0,0.67207983]
[1741409004219,0.92949,2152.1,2152.0,0.67207983]
[1741409004419,0.92949,2152.1,2152.0,0.05697983]
[1741409005019,0.6154,2152.3,2152.0,0.05697983]
[1741409005225,0.92949,2152.1,2152.0,0.00697983]
[1741409009928,0.6154,2152.3,2152.0,0.00697983]
[1741409010123,0.92949,2152.1,2152.0,0.00697983]
[1741409012831,1.53269,2152.1,2152.0,0.00697983]
[1741409014038,1.53269,2152.1,2151.4,1.3198]
[1741409014039,0.92973,2151.6,2151.4,1.3198]
[1741409014240,0.92975,2151.5,2151.4,0.15]
[1741409015935,0.92983,2151.3,2151.2,0.00697983]
[1741409018941,0.6326,2151.4,2151.2,0.00697983]
[1741409019243,1.56241,2151.4,2151.2,1.11685983]
[1741409019438,1.56241,2151.4,2151.2,0.18697983]
[1741409020032,0.6326,2151.4,2151.2,0.18697983]
[1741409020236,1.56242,2151.4,2151.2,0.18697983]
[1741409020443,1.56242,2151.4,2151.2,1.11684983]
[1741409020739,0.6326,2151.4,2151.2,0.18697983]
[1741409020935,0.92977,2151.5,2151.3,0.92983]
[1741409021142,0.92979,2151.4,2151.3,0.03]
[1741409021836,0.92976,2151.5,2151.3,0.95983]
[1741409022438,0.6285,2151.6,2151.3,0.03]
[1741409022642,0.92979,2151.4,2151.3,0.03]
[1741409023142,0.92977,2151.5,2151.3,0.95981]
[1741409023342,0.92979,2151.4,2151.3,0.03]
[1741409024343,0.92983,2151.3,2151.2,0.00697983]
[1741409024641,4.80303,2151.3,2151.2,0.00697983]
[1741409025033,6.88703,2151.3,2151.2,0.00697983]
[1741409026036,7.25656756,2151.3,2151.2,0.00697983]
[1741409026433,6.88703,2151.3,2151.2,0.00697983]
[1741409027349,1.59523,2151.3,2151.2,0.00697983]
[1741409027647,4.80303,2151.3,2151.2,0.00697983]
[1741409027842,2.26353,2151.3,2151.2,0.00697983]
[1741409030748,2.983,2151.5,2151.2,0.00697983]
[1741409030934,2.983,2151.5,2151.3,0.92983]
[1741409031144,2.983,2151.5,2151.4,0.6154]
[1741409031639,0.00697983,2151.7,2151.6,0.9297]
[1741409031948,0.00697983,2151.7,2151.4,0.6154]
[1741409032136,0.92975,2151.5,2151.4,0.6154]
[1741409033738,0.93666983,2151.7,2151.4,0.6154]
[1741409033936,0.93666983,2151.7,2151.5,0.92974]
[1741409034138,0.00697983,2151.7,2151.4,0.6154]
[1741409034350,0.92975,2151.5,2151.4,0.6154]
[1741409034545,0.92979,2151.4,2151.3,3.2078]
[1741409034740,1.54429,2151.4,2151.3,3.2078]
[1741409035246,0.6145,2151.4,2151.2,0.00697983]
[1741409035545,0.92983,2151.3,2151.2,0.00697983]
[1741409036342,1.57613,2151.3,2151.2,0.00697983]
[1741409036547,2.23343,2151.3,2151.2,0.00697983]
[1741409038744,0.6145,2151.4,2151.2,0.00697983]
[1741409039046,0.92983,2151.3,2151.2,0.00697983]
[1741409041846,0.6145,2151.4,2151.2,0.00697983]
[1741409042047,0.92983,2151.3,2151.2,0.00697983]
[1741409042235,1.54432,2151.4,2151.2,0.93682983]
[1741409042435,0.6145,2151.4,2151.2,0.00697983]
[1741409042646,0.92983,2151.3,2151.2,0.00697983]
[1741409043045,0.6404,2151.5,2151.2,0.00697983]
[1741409043443,0.6404,2151.5,2151.3,0.92983]
[1741409043646,0.6404,2151.5,2151.3,1.55363]
[1741409044042,2.6966,2151.6,2151.4,0.92978]
[1741409044243,0.6126,2151.6,2151.3,1.2263]
[1741409044447,0.6126,2151.6,2151.3,2.17612]
[1741409044646,0.92976,2151.5,2151.3,2.17612]
[1741409044848,1.54233,2151.6,2151.4,0.92979]
[1741409045150,0.6126,2151.6,2151.3,1.2263]
[1741409045351,0.92975,2151.5,2151.3,2.1761]
[1741409045750,0.6126,2151.6,2151.3,1.2463]
[1741409046051,4.30296983,2151.7,2151.5,0.92973]
[1741409046251,2.21896983,2151.7,2151.5,0.92973]
[1741409046453,0.93666983,2151.7,2151.5,0.92973]
[1741409046645,0.00697983,2151.7,2151.3,4.4341]
[1741409046847,0.92979,2151.4,2151.3,0.09]
[1741409047050,3.8203,2151.6,2151.2,0.00697983]
[1741409047251,0.92983,2151.3,2151.2,0.00697983]
[1741409051253,1.54772,2151.4,2151.2,0.93683983]
[1741409052257,0.6179,2151.4,2151.2,0.00697983]
[1741409052459,0.6605,2151.5,2151.2,0.00697983]
[1741409052859,0.92983,2151.3,2151.2,0.00697983]
[1741409054258,0.92981,2151.4,2151.2,0.93683983]
[1741409054454,1.59027,2151.5,2151.2,0.00697983]
[1741409054655,1.59027,2151.5,2151.3,0.6599]
[1741409054881,1.59027,2151.5,2151.3,1.58973]
[1741409055661,0.92977,2151.5,2151.3,1.58971]
[1741409056558,4.4233,2151.6,2151.3,0.6599]
[1741409056762,4.4233,2151.6,2151.5,0.92975]
[1741409057355,1.2155,2151.6,2151.5,0.92975]
[1741409057560,2.1452,2151.6,2151.5,0.92975]
[1741409057761,1.2155,2151.6,2151.5,0.92975]
[1741409057954,1.2155,2151.6,2151.3,0.6599]
[1741409058156,1.2155,2151.6,2151.3,1.62971]
[1741409058358,0.92976,2151.5,2151.4,0.92979]
[1741409058558,2.14522,2151.6,2151.4,0.92979]
[1741409058860,2.14524,2151.6,2151.4,0.92979]
[1741409059258,1.2155,2151.6,2151.5,0.92975]
[1741409059963,1.2155,2151.6,2151.3,0.6599]
[1741409060162,1.2155,2151.6,2151.3,0.6999]
[1741409060363,0.92979,2151.4,2151.3,0.04]
[1741409060571,0.92983,2151.3,2151.2,0.00697983]
[1741409062266,1.57753,2151.3,2151.2,0.00697983]
[1741409062565,3.66153,2151.3,2151.2,0.00697983]
[1741409065063,3.66153,2151.3,2150.7,3.8303]
[1741409065064,2.7317,2151.3,2150.7,3.2078]
[1741409065266,0.93005,2150.8,2150.7,3.2778]
[1741409065869,0.6457,2151.2,2150.7,3.2778]
[1741409066169,0.92998,2151.0,2150.7,3.2778]
[1741409066370,0.92998,2151.0,2150.8,0.93005]
[1741409066670,0.92998,2151.0,2150.7,4.14484983]
[1741409066969,0.92998,2151.0,2150.7,3.28477983]
[1741409067169,0.93,2151.0,2150.7,4.21482983]
[1741409067362,0.6457,2151.2,2150.7,3.28477983]
[1741409067556,0.93003,2150.9,2150.7,3.28477983]
[1741409067759,0.93005,2150.8,2150.7,3.28477983]
[1741409068563,0.93005,2150.8,2150.7,3.21477983]
[1741409069064,2.20405,2150.8,2150.7,3.21477983]
[1741409070474,2.58415781,2150.8,2150.7,3.21477983]
[1741409071467,2.20405,2150.8,2150.7,3.21477983]
[1741409072266,2.57995547,2150.8,2150.7,3.21477983]
[1741409072763,2.57995547,2150.8,2150.7,0.00697983]
[1741409072967,0.93029,2150.3,2150.1,0.6025]
[1741409073171,2.084,2150.5,2150.1,1.3525]
[1741409073368,0.93028,2150.3,2150.1,1.3525]
[1741409073769,2.15618,2150.3,2150.1,1.3525]
[1741409074071,1.2259,2150.3,2150.1,2.28284]
[1741409075669,1.2259,2150.3,2150.1,2.28282]
[1741409075870,2.15617,2150.3,2150.1,2.28282]
[1741409076268,1.2259,2150.3,2150.2,0.93031]
[1741409076467,1.2259,2150.3,2150.2,0.94031]
[1741409076667,1.2259,2150.3,2150.2,0.01]
[1741409076881,2.15617,2150.3,2150.2,0.01]
[1741409077569,0.93027,2150.3,2150.2,0.01]
[1741409077769,0.66867983,2150.4,2150.2,0.01]
[1741409077770,1.96227983,2150.4,2150.2,0.01]
[1741409078071,0.00697983,2150.4,2150.3,0.93027]
[1741409078268,0.93721983,2150.4,2150.3,0.8076]
[1741409078572,0.00697983,2150.4,2150.3,0.8076]
[1741409078768,0.93028,2150.3,2150.1,4.13814]
[1741409079069,0.93028,2150.3,2150.1,1.79034]
[1741409079573,0.00697983,2150.4,2150.1,0.86]
[1741409079775,0.93721983,2150.4,2150.2,0.93029]
[1741409080073,0.00697983,2150.4,2150.2,0.08]
[1741409080269,0.00697983,2150.4,2150.3,0.93027]
[1741409080574,0.00697983,2150.4,2150.3,0.97027]
[1741409082872,0.6542,2150.8,2150.7,0.93009]
[1741409083079,0.93003,2150.9,2150.7,0.93009]
[1741409083372,0.93009,2150.7,2150.5,0.93015]
[1741409083562,3.3795,2151.0,2150.5,0.12]
[1741409084074,0.93002,2150.9,2150.7,0.93007]
[1741409084572,2.23246983,2151.0,2150.4,4.4869]
[1741409084771,0.93001,2150.9,2150.7,0.93007]
[1741409086168,2.23246983,2151.0,2150.8,0.93005]
[1741409087071,2.23246983,2151.0,2150.4,4.4869]
[1741409087072,1.30247983,2151.0,2150.4,4.4869]
[1741409087263,0.93002,2150.9,2150.7,0.93008]
[1741409089370,2.23246983,2151.0,2150.7,0.93008]
[1741409089572,2.23246983,2151.0,2150.8,0.6648]
[1741409091671,2.23246983,2151.0,2150.8,1.59484]
[1741409094177,2.23246983,2151.0,2150.8,0.7148]
[1741409094178,0.00697983,2151.0,2150.8,0.7148]
[1741409094371,0.00697983,2151.0,2150.9,1.59111]
[1741409097073,0.00697983,2151.0,2150.9,1.61111]
[1741409097476,1.58018,2151.5,2151.3,0.92982]
[1741409097775,0.92979,2151.4,2151.2,0.92985]
[1741409098372,0.6504,2151.5,2151.3,0.92982]
[1741409098570,0.65737983,2151.5,2151.1,0.00697983]
[1741409098874,0.00697983,2151.5,2151.4,0.92979]
[1741409099072,0.00697983,2151.5,2151.4,0.93979]
[1741409100371,0.00697983,2151.5,2151.4,4.14759]
[1741409100872,3.2078,2152.2,2151.4,4.14759]
[1741409101173,0.92957,2151.9,2151.7,0.92963]
[1741409101376,7.1738,2152.1,2151.5,0.6177]
[1741409101572,0.9297,2151.6,2151.5,0.6177]
[1741409101877,0.92978,2151.5,2151.3,0.621]
[1741409102177,3.21477983,2151.8,2151.3,0.661]
[1741409102377,1.2438,2151.7,2151.2,1.54754]
[1741409102577,0.6392,2151.6,2151.2,1.62754]
[1741409102772,0.6392,2151.6,2151.2,0.6977]
[1741409102974,1.2438,2151.7,2151.2,0.6977]
[1741409103171,0.00697983,2151.8,2151.2,0.6977]
[1741409103373,0.93661983,2151.8,2151.4,3.2078]
[1741409103678,0.93661983,2151.8,2151.6,0.92968]
[1741409104281,0.00697983,2151.8,2151.5,0.6175]
[1741409104580,0.00697983,2151.8,2151.2,0.6177]
[1741409104780,0.92972,2151.6,2151.3,0.6175]
[1741409104983,0.00697983,2151.8,2151.3,0.6875]
[1741409105167,3.2078,2151.7,2151.3,0.6875]
[1741409105374,0.92979,2151.4,2151.2,0.92985]
[1741409105579,0.6159,2151.6,2151.3,0.92982]
[1741409105580,0.92979,2151.5,2151.3,0.92982]
[1741409105974,1.2769,2151.6,2151.1,4.49757983]
[1741409106188,0.92975,2151.5,2151.2,0.92984]
[1741409106483,1.2769,2151.6,2151.2,0.97984]
[1741409106484,0.92979,2151.4,2151.2,0.97984]
[1741409106680,1.2769,2151.6,2151.1,3.21477983]
[1741409106881,0.92988,2151.2,2151.1,0.00697983]
[1741409107482,1.2743,2151.2,2151.1,0.00697983]
[1741409107886,2.083,2151.3,2151.2,0.92988]
[1741409108083,5.2908,2151.9,2151.2,1.3205]
[1741409108384,5.2908,2151.9,2151.2,2.26036]
[1741409108385,0.92979,2151.4,2151.2,2.26036]
[1741409108585,0.92979,2151.4,2151.2,2.22036]
[1741409108783,0.92988,2151.2,2151.1,0.00697983]
[1741409108988,0.6149,2151.3,2151.1,0.00697983]
[1741409109284,0.92988,2151.2,2151.1,0.00697983]
[1741409118500,0.93001,2150.9,2150.8,3.2078]
[1741409120497,0.92998,2151.0,2150.8,4.13783]
[1741409120802,0.93001,2150.9,2150.8,3.2078]
[1741409123894,1.58541,2150.9,2150.8,3.2078]
[1741409124200,0.92999,2151.0,2150.8,3.2078]
[1741409124393,0.92999,2151.0,2150.8,0.6138]
[1741409124394,0.92998,2151.0,2150.8,0.6138]
[1741409124790,3.01298,2151.0,2150.8,0.6138]
[1741409124992,3.01298,2151.0,2150.8,1.54383]
[1741409125395,0.93001,2150.9,2150.8,0.6138]
[1741409125590,2.083,2151.0,2150.6,0.00697983]
[1741409125792,0.93009,2150.7,2150.6,0.00697983]
[1741409126492,0.93003,2150.9,2150.6,0.93707983]
[1741409126688,0.93003,2150.9,2150.7,0.93009]
[1741409126888,3.01298,2151.0,2150.7,1.2647]
[1741409127094,5.2908,2151.0,2150.6,0.00697983]
[1741409127300,0.93009,2150.7,2150.6,0.00697983]
[1741409129500,5.2908,2151.0,2150.6,0.00697983]
[1741409129695,0.93009,2150.7,2150.6,0.00697983]
[1741409129901,2.083,2151.0,2150.6,0.93709983]
[1741409130093,0.93002,2150.9,2150.7,0.93007]
[1741409130300,0.93002,2150.9,2150.8,0.6328]
[1741409131297,2.083,2151.0,2150.6,0.00697983]
[1741409131601,0.93008,2150.8,2150.6,0.93710983]
[1741409132206,0.93009,2150.7,2150.6,0.00697983]
[1741409132395,2.18159,2150.7,2150.6,0.00697983]
[1741409132595,0.93027,2150.3,2150.2,0.6227]
[1741409132796,3.2078,2150.3,2150.0,0.6063]
[1741409132994,3.2078,2150.3,2150.0,0.6763]
[1741409133201,2.082,2150.4,2150.0,0.6763]
[1741409133697,2.08897983,2150.4,2150.1,3.8284]
[1741409133903,0.00697983,2150.4,2150.3,0.93027]
[1741409134093,0.00697983,2150.4,2150.3,0.02]
[1741409134295,0.93719983,2150.4,2150.3,0.6263]
[1741409135607,0.93031,2150.2,2150.1,3.2078]
[1741409135805,0.93031,2150.2,2150.1,3.8541]
[1741409136205,0.00697983,2150.4,2150.3,0.93027]
[1741409136407,0.93719983,2150.4,2150.2,0.6691]
[1741409136701,0.93719983,2150.4,2150.2,0.7291]
[1741409137103,0.00697983,2150.4,2150.3,0.93027]
[1741409137292,0.00697983,2150.4,2150.3,0.99027]
[1741409140004,0.93719983,2150.4,2150.3,0.06]
[1741409140207,0.93027,2150.3,2150.1,4.74443]
[1741409140505,0.00697983,2150.4,2150.1,3.9241]
[1741409140799,0.93027,2150.3,2150.1,4.85444]
[1741409141503,0.93031,2150.2,2150.1,3.9241]
[1741409141704,0.93031,2150.2,2150.1,0.7163]
[1741409142909,0.93031,2150.2,2150.1,0.6063]
[1741409143901,2.082,2150.3,2150.0,0.6063]
[1741409144101,0.93035,2150.1,2150.0,0.6063]
[1741409144503,3.2078,2150.2,2149.9,0.00697983]
[1741409144700,0.93036,2150.1,2149.9,0.00697983]
[1741409145902,4.13814,2150.2,2149.9,0.93741983]
[1741409146211,0.93038,2150.1,2149.9,0.00697983]
[1741409146711,0.93038,2150.1,2149.9,0.93739983]
[1741409146910,0.93038,2150.1,2149.9,0.00697983]
[1741409147708,0.93039,2150.0,2149.9,0.00697983]
[1741409148611,1.3128,2150.1,2149.9,0.00697983]
[1741409148910,2.082,2150.3,2149.9,0.00697983]
[1741409149107,3.38,2150.3,2149.9,0.00697983]
[1741409149511,0.93039,2150.0,2149.9,0.00697983]
[1741409150305,3.38,2150.3,2149.9,0.13697983]
[1741409150512,3.38,2150.3,2150.0,0.6157]
[1741409150805,2.22828,2150.3,2150.1,0.6671]
[1741409151109,2.22828,2150.3,2150.2,0.93031]
[1741409151110,1.298,2150.3,2150.2,0.93031]
[1741409151301,2.22827,2150.3,2150.1,2.23892]
[1741409151502,1.298,2150.3,2150.1,1.3086]
[1741409151705,0.00697983,2150.4,2150.3,0.93027]
[1741409152703,0.93719983,2150.4,2150.2,0.93028]
[1741409152916,0.93027,2150.3,2150.1,5.44673]
[1741409153115,1.3013,2150.3,2150.1,0.7471]
[1741409153416,0.6505,2150.2,2150.1,1.59745]
[1741409153612,1.3013,2150.3,2150.1,0.6671]
[1741409153812,2.23159,2150.3,2150.1,1.59743]
[1741409154109,1.3013,2150.3,2150.2,0.93031]
[1741409154310,2.08897983,2150.4,2150.3,0.93027]
[1741409154607,2.08897983,2150.4,2150.2,0.6409]
[1741409154806,2.08897983,2150.4,2150.3,0.93027]
[1741409155037,2.08897983,2150.4,2150.3,1.58887]
[1741409155602,0.00697983,2150.4,2150.3,1.58887]
[1741409156205,0.00697983,2150.4,2150.3,1.59887]
[1741409161213,0.00697983,2150.4,2150.3,0.94027]
[1741409161410,0.93719983,2150.4,2150.3,0.03]
[1741409161610,0.93719983,2150.4,2150.3,0.96027]
[1741409161611,0.00697983,2150.4,2150.3,0.96027]
[1741409164216,0.00697983,2150.4,2150.3,0.93027]
[1741409164420,0.00697983,2150.4,2150.2,2.18588]
[1741409164721,0.00697983,2150.4,2150.3,0.93027]
[1741409165218,0.00697983,2150.4,2150.2,2.18588]
[1741409165516,0.66327983,2150.4,2150.3,0.93027]
[1741409165723,0.00697983,2150.4,2150.3,0.93027]
[1741409166718,0.00697983,2150.4,2150.3,1.00027]
[1741409179017,5.5322,2151.5,2150.3,5.00027]
[1741409179224,1.2629,2151.1,2150.6,3.2078]
[1741409179421,2.19285,2151.1,2150.8,0.93005]
[1741409179728,0.6195,2151.0,2150.9,0.93001]
[1741409180022,0.6195,2151.0,2150.6,3.2078]
[1741409180328,0.93011,2150.7,2150.6,0.09]
[1741409181026,0.93008,2150.8,2150.6,1.02014]
[1741409181225,0.6479,2150.7,2150.6,0.09]
[1741409181427,1.57799,2150.7,2150.6,0.09]
[1741409181729,0.6479,2150.7,2150.6,1.02014]
[1741409183634,2.20619,2150.7,2150.6,0.09]
[1741409184725,2.20619,2150.7,2150.4,0.9302]
[1741409184726,0.93014,2150.6,2150.4,0.9302]
[1741409184922,0.93014,2150.6,2150.4,0.17]
[1741409184923,1.58134,2150.6,2150.4,0.17]
[1741409185235,1.58135,2150.6,2150.4,1.1002]
[1741409185426,0.6512,2150.6,2150.4,0.17]
[1741409185626,0.93018,2150.5,2150.4,0.17]
[1741409186128,0.93022,2150.4,2150.3,3.2078]
[1741409186429,0.93022,2150.4,2150.3,3.2678]
[1741409186923,0.9302,2150.5,2150.3,4.19805]
[1741409187428,0.93022,2150.4,2150.3,3.2678]
[1741409188027,0.93021,2150.5,2150.3,4.19805]
[1741409188527,0.93022,2150.4,2150.3,4.19805]
[1741409188725,0.6512,2150.6,2150.3,4.19805]
[1741409189039,0.93019,2150.5,2150.3,4.19805]
[1741409189423,0.6512,2150.6,2150.3,3.2678]
[1741409189626,0.6512,2150.6,2150.5,0.93018]
[1741409190227,1.58135,2150.6,2150.4,1.58299]
[1741409190826,1.58135,2150.6,2150.4,0.93019]
[1741409191032,0.6512,2150.6,2150.3,3.2078]
[1741409191332,0.93022,2150.4,2150.3,3.2778]
[1741409191631,0.93022,2150.4,2150.3,3.2078]
[1741409195330,5.94,2150.6,2150.3,3.2078]
[1741409195534,0.9302,2150.5,2150.3,4.13804]
[1741409197333,2.7332,2150.6,2150.3,3.2078]
[1741409197534,0.6512,2150.6,2150.3,3.2978]
[1741409197727,0.93019,2150.5,2150.3,3.2978]
[1741409197927,1.58135,2150.6,2150.4,0.93021]
[1741409198134,1.58135,2150.6,2150.4,0.95021]
[1741409198536,0.93018,2150.5,2150.4,0.02]
[1741409198737,0.93022,2150.4,2150.3,3.2078]
[1741409201429,3.01122,2150.4,2150.3,3.2078]
[1741409201630,0.93039,2150.0,2149.9,3.21477983]
[1741409201938,0.93039,2150.0,2149.9,3.34477983]
[1741409202527,0.655,2150.2,2149.9,3.34477983]
[1741409202738,2.16058,2150.3,2150.1,0.93034]
[1741409202939,2.16058,2150.3,2150.1,0.01]
[1741409203139,2.16059,2150.3,2150.1,0.01]
[1741409203337,1.2303,2150.3,2150.1,0.01]
[1741409203536,0.655,2150.5,2150.3,0.93027]
[1741409203737,0.93024,2150.4,2150.3,0.01]
[1741409204237,0.611,2150.4,2150.3,0.01]
[1741409204440,0.655,2150.5,2150.4,0.93022]
[1741409204639,1.58518,2150.5,2150.4,0.743]
[1741409204835,1.58518,2150.5,2150.2,4.79749]
[1741409204836,0.655,2150.5,2150.2,4.79749]
[1741409205031,0.93027,2150.3,2150.2,0.1]
[1741409205239,0.93035,2150.1,2150.0,0.6594]
[1741409205430,2.19684,2150.2,2150.0,0.7094]
[1741409205631,2.19684,2150.2,2150.0,1.63979]
[1741409206031,1.5852,2150.5,2150.0,0.7094]
[1741409206235,1.5852,2150.5,2150.1,0.6479]
[1741409206440,2.20254,2150.6,2150.4,0.9302]
[1741409206643,0.93018,2150.5,2150.2,3.8708]
[1741409206844,0.93018,2150.5,2150.3,0.93025]
[1741409207042,2.20257,2150.6,2150.3,0.95025]
[1741409207537,1.2724,2150.6,2150.4,0.622]
[1741409207741,3.62346,2150.8,2150.6,0.93012]
[1741409207942,3.3103,2150.8,2150.4,0.622]
[1741409208138,3.3103,2150.8,2150.5,3.2078]
[1741409208442,2.15936,2150.8,2150.6,0.93012]
[1741409208641,2.15936,2150.8,2150.6,1.57582]
[1741409209043,0.93001,2150.9,2150.7,0.93007]
[1741409209247,2.6948,2151.0,2150.7,0.95007]
[1741409209439,0.93002,2150.9,2150.6,1.57582]
[1741409209940,2.6948,2151.0,2150.6,0.6457]
[1741409210244,3.62479,2151.0,2150.7,0.93009]
[1741409210441,3.62479,2151.0,2150.7,0.03]
[1741409210741,3.62478,2151.0,2150.7,0.96005]
[1741409211339,0.93002,2150.9,2150.7,0.96005]
[1741409211544,0.93005,2150.8,2150.6,1.57581]
[1741409211741,1.56215,2150.8,2150.6,1.60581]
[1741409212246,0.6321,2150.8,2150.6,1.60581]
[1741409212451,0.6321,2150.8,2150.7,0.93009]
[1741409212741,0.6321,2150.8,2150.6,1.5758]
[1741409212939,0.6321,2150.8,2150.6,1.6058]
[1741409213141,0.6321,2150.8,2150.7,0.93009]
[1741409213341,1.56215,2150.8,2150.6,1.57581]
[1741409213539,1.56215,2150.8,2150.6,1.60581]
[1741409213747,1.56218,2150.8,2150.6,0.6757]
[1741409214444,0.6321,2150.8,2150.6,0.6757]
[1741409214645,0.6321,2150.8,2150.7,0.93009]
[1741409215236,1.56219,2150.8,2150.6,0.6457]
[1741409215440,1.56219,2150.8,2150.6,0.6757]
[1741409215642,0.6321,2150.8,2150.6,0.6757]
[1741409215844,1.56217,2150.8,2150.6,1.60584]
[1741409217441,0.6321,2150.8,2150.6,0.6757]
[1741409217642,1.56218,2150.8,2150.6,1.60583]
[1741409217846,0.93009,2150.7,2150.6,0.6757]
[1741409218043,1.56217,2150.8,2150.6,1.60584]
[1741409219249,0.93009,2150.7,2150.6,0.6757]
[1741409219746,0.6321,2150.8,2150.6,1.60584]
[1741409219952,1.56218,2150.8,2150.6,1.60584]
[1741409220249,1.56218,2150.8,2150.6,0.6757]
[1741409220441,1.56218,2150.8,2150.5,3.2078]
[1741409220442,0.93014,2150.6,2150.5,3.2078]
[1741409220645,0.93014,2150.6,2150.5,3.2378]
[1741409220845,0.93014,2150.6,2150.5,4.16798]
[1741409221054,1.53782,2150.7,2150.5,4.16798]
[1741409221746,0.93014,2150.6,2150.5,4.16798]
[1741409221948,0.93014,2150.6,2150.5,3.2378]
[1741409222454,1.57134,2150.6,2150.5,3.2078]
[1741409222645,0.93019,2150.5,2150.4,0.93022]
[1741409222847,1.57049,2150.5,2150.3,0.6266]
[1741409223153,0.6077,2150.7,2150.6,0.93014]
[1741409223543,1.2815,2150.9,2150.4,6.1761]
[1741409223853,1.2815,2150.9,2150.8,0.93005]
[1741409224351,1.2815,2150.9,2150.4,6.1761]
[1741409224552,1.2815,2150.9,2150.8,0.93005]
[1741409224946,1.2815,2150.9,2150.4,6.1761]
[1741409225166,2.21151,2150.9,2150.4,6.4461]
[1741409225454,2.21151,2150.9,2150.7,0.93007]
[1741409226153,0.93008,2150.8,2150.6,0.93012]
[1741409226450,1.2815,2150.9,2150.6,0.02]